bitfinex-derivatives/quotes_BNBF0:USTF0_20250315
["timestamp","ask_amount","ask_price","bid_price","bid_amount"]
[1742064230716,0.32617913,613.16,612.04,2.5375392]
[1742064231016,0.32617913,613.16,612.05,2.5375392]
[1742064231218,0.32617913,613.16,612.06,2.5375392]
[1742064231516,0.32617913,613.16,612.07,2.53758077]
[1742064231718,0.32617913,613.16,612.08,2.53758077]
[1742064231917,0.32617913,613.16,612.09,2.53758077]
[1742064232119,0.32617913,613.16,612.1,0.9759926]
[1742064232319,0.32617913,613.16,612.11,0.9759926]
[1742064232519,0.32617913,613.16,612.12,2.53746026]
[1742064232820,0.32617913,613.16,612.13,2.53746026]
[1742064233021,0.32617913,613.16,612.14,2.53746026]
[1742064233321,0.32617913,613.16,612.15,2.53746026]
[1742064233522,0.32617913,613.16,612.16,0.9759926]
[1742064233729,0.32617913,613.16,612.17,0.9759926]
[1742064234026,0.32617913,613.16,612.18,0.9759926]
[1742064234223,0.32617913,613.16,612.19,0.9755645]
[1742064234427,0.32617913,613.16,612.2,0.9755645]
[1742064234625,0.32617913,613.16,612.21,0.9755645]
[1742064234825,0.32617913,613.16,612.22,0.9755645]
[1742064235026,0.32617913,613.16,612.23,0.9755645]
[1742064235222,0.32617913,613.16,612.24,0.9755645]
[1742064235422,0.32617913,613.16,612.22,2.86631886]
[1742064235627,0.32617913,613.16,612.23,0.97490595]
[1742064235929,0.32617913,613.16,612.24,0.97490595]
[1742064236123,0.32617913,613.16,612.23,1.10246351]
[1742064236523,0.32617913,613.16,612.24,0.97462698]
[1742064236726,0.32617913,613.16,612.24,1.10246351]
[1742064237525,0.32617913,613.16,612.25,1.10246351]
[1742064237829,2.47811396,613.9,612.26,1.10246351]
[1742064238029,0.32579657,613.88,612.26,1.10246351]
[1742064238628,0.32579657,613.88,612.27,1.10246351]
[1742064239029,0.32579657,613.88,612.27,2.15046351]
[1742064239230,0.32579657,613.88,612.28,1.10246351]
[1742064239425,0.28398427,613.87,612.28,1.10246351]
[1742064239628,0.28398427,613.87,612.29,1.10246351]
[1742064239828,0.32581249,613.85,612.29,1.10246351]
[1742064240531,0.32581249,613.85,612.3,1.10246351]
[1742064241128,0.32581249,613.85,612.27,1.048]
[1742064241129,0.32581249,613.85,612.31,1.10246351]
[1742064241334,0.28398427,613.84,612.31,1.10246351]
[1742064241533,0.32582841,613.82,612.31,1.10246351]
[1742064241934,0.32582841,613.82,612.27,1.048]
[1742064242432,0.32582841,613.82,612.27,2.238]
[1742064242635,0.32582841,613.82,612.28,1.10015546]
[1742064243532,0.32582841,613.82,612.29,1.10015546]
[1742064244130,0.32582841,613.82,612.3,1.10015546]
[1742064244330,0.2839889,613.81,612.3,1.10015546]
[1742064244538,0.32584434,613.79,612.3,1.10015546]
[1742064245237,0.32584434,613.79,612.31,1.10015546]
[1742064246434,0.32584434,613.79,612.32,1.10015546]
[1742064247337,0.32584434,613.79,612.27,2.238]
[1742064247533,0.32584434,613.79,612.28,0.32664793]
[1742064249335,0.32584434,613.79,612.29,1.09855619]
[1742064249537,0.32584434,613.79,612.3,0.32663726]
[1742064252439,0.32584434,613.79,612.31,1.09754906]
[1742064252637,0.32584434,613.79,612.32,0.3266266]
[1742064253240,0.32584434,613.79,612.33,2.21954906]
[1742064253643,0.32584434,613.79,612.34,1.09754906]
[1742064254236,0.32584434,613.79,612.35,1.09754906]
[1742064254439,0.32584434,613.79,612.35,2.38554906]
[1742064254636,0.32584434,613.79,612.36,1.09754906]
[1742064255341,0.32584434,613.79,612.35,1.288]
[1742064256041,0.32584434,613.79,612.36,1.09626416]
[1742064256640,0.32584434,613.79,612.37,1.09626416]
[1742064257442,0.32584434,613.79,612.35,1.288]
[1742064258136,0.32584434,613.79,612.36,1.09575982]
[1742064259045,0.32584434,613.79,612.37,1.09575982]
[1742064259443,0.32584434,613.79,612.38,1.09575982]
[1742064259940,0.32584434,613.79,612.39,1.09575982]
[1742064260647,0.32584434,613.79,612.4,1.422]
[1742064260846,0.32584434,613.79,612.41,0.32657859]
[1742064261345,0.32584434,613.79,612.42,0.96945267]
[1742064261552,0.32584434,613.79,612.43,1.2960206]
[1742064261744,0.32584434,613.79,612.43,0.32656793]
[1742064262147,0.32584434,613.79,612.44,1.09498564]
[1742064262351,0.32584434,613.79,612.45,0.32655726]
[1742064262953,0.32584434,613.79,612.46,1.09498564]
[1742064263154,0.32584434,613.79,612.47,0.3265466]
[1742064263354,0.32584434,613.79,612.48,1.09498564]
[1742064263550,0.32584434,613.79,612.48,1.42152691]
[1742064263756,0.32584434,613.79,612.49,0.32653594]
[1742064264156,0.32584434,613.79,612.5,1.09498564]
[1742064264467,0.32584434,613.79,612.51,0.32652528]
[1742064264853,0.32584434,613.79,612.51,1.42151092]
[1742064265254,0.32584434,613.79,612.52,1.09498564]
[1742064265455,0.32584434,613.79,612.53,0.32651461]
[1742064265951,0.32584434,613.79,612.54,1.09498564]
[1742064266156,0.32584434,613.79,612.55,0.32650395]
[1742064267156,0.32584434,613.79,612.56,0.96758794]
[1742064267357,0.32584434,613.79,612.57,1.29408123]
[1742064267557,0.32584434,613.79,612.57,0.32649329]
[1742064268057,0.32584434,613.79,612.58,0.96736174]
[1742064268260,0.32584434,613.79,612.59,1.29384437]
[1742064268461,0.32584434,613.79,612.6,4.13360383]
[1742064268760,0.32584434,613.79,612.61,1.29383372]
[1742064268958,0.32584434,613.79,612.62,1.29382839]
[1742064269157,0.32584434,613.79,612.63,1.29382306]
[1742064269356,0.32584434,613.79,612.64,4.13358252]
[1742064269559,0.32584434,613.79,612.65,1.2938124]
[1742064269756,0.32584434,613.79,612.66,1.29380707]
[1742064269961,0.32584434,613.79,612.67,1.29380174]
[1742064270157,0.32584434,613.79,612.68,1.29379642]
[1742064270363,0.32584434,613.79,612.69,1.29379109]
[1742064270661,0.32584434,613.79,612.7,1.29378576]
[1742064270860,0.32584434,613.79,612.71,1.29378043]
[1742064271057,0.32584434,613.79,612.72,1.2937751]
[1742064271262,0.32584434,613.79,612.73,2.05843]
[1742064271457,0.32584434,613.79,612.73,1.09221723]
[1742064271962,0.32584434,613.79,612.74,1.09221723]
[1742064272956,0.32584434,613.79,612.75,2.79121723]
[1742064273461,0.32584434,613.79,612.76,1.09221723]
[1742064273755,0.32584434,613.79,612.77,1.09221723]
[1742064274364,0.32584434,613.79,612.78,1.09221723]
[1742064275258,0.32584434,613.79,612.79,1.09221723]
[1742064275762,0.32584434,613.79,612.8,1.09221723]
[1742064276358,0.32584434,613.79,612.75,1.699]
[1742064276866,0.32584434,613.79,612.76,1.08973056]
[1742064277065,0.32584434,613.79,612.76,2.15873056]
[1742064277463,0.32584434,613.79,612.77,1.08973056]
[1742064284166,0.32584434,613.79,612.77,2.12673056]
[1742064285074,0.32584434,613.79,612.77,1.037]
[1742064287169,0.32584434,613.79,612.77,2.351]
[1742064291979,0.32584434,613.79,612.78,1.0928501]
[1742064292179,0.32584434,613.79,612.77,2.351]
[1742064292979,0.32584434,613.79,612.77,3.798]
[1742064293275,0.32584434,613.79,612.78,1.09317583]
[1742064294180,0.32584434,613.79,612.79,1.09317583]
[1742064298083,0.32584434,613.79,612.77,5.08]
[1742064298284,0.32584434,613.79,612.77,4.043]
[1742064301087,0.32584434,613.79,612.77,5.093]
[1742064302681,0.32584434,613.79,612.78,1.09531081]
[1742064303090,2.47811396,614.23,612.78,1.42169221]
[1742064303284,0.32561622,614.22,612.79,1.42168689]
[1742064303490,0.32561622,614.22,612.8,0.32637075]
[1742064303987,0.32561622,614.22,612.81,2.0653262]
[1742064304188,0.32561622,614.22,612.82,0.3263601]
[1742064304585,0.32561622,614.22,612.83,1.09531081]
[1742064304784,0.32561622,614.22,612.84,0.97025069]
[1742064305087,0.32561622,614.22,612.85,0.97025069]
[1742064305288,0.32561622,614.22,612.86,0.97025069]
[1742064305483,0.32561622,614.22,612.87,0.97025069]
[1742064305689,0.32561622,614.22,612.88,0.97025069]
[1742064305889,0.32561622,614.22,612.85,1.09573276]
[1742064306089,0.32561622,614.22,612.83,0.32635478]
[1742064306492,0.32561622,614.22,612.84,1.09625308]
[1742064306791,0.32561622,614.22,612.84,2.51025308]
[1742064306985,0.28376312,614.21,612.84,2.51025308]
[1742064307189,0.32561622,614.22,612.84,2.51025308]
[1742064307190,0.32562683,614.2,612.84,2.51025308]
[1742064307389,0.32562683,614.2,612.85,1.09625308]
[1742064308392,0.32562683,614.2,612.84,1.414]
[1742064309293,0.32562683,614.2,612.85,1.09710002]
[1742064309494,0.60935872,614.2,612.85,1.09710002]
[1742064309793,0.60935872,614.2,612.86,1.09710002]
[1742064310392,0.60935872,614.2,612.85,1.09710002]
[1742064311188,0.60935872,614.2,612.84,1.414]
[1742064311394,0.60935872,614.2,612.86,1.09751871]
[1742064311892,0.60935872,614.2,612.87,1.09751871]
[1742064312588,0.60935872,614.2,612.84,1.414]
[1742064313194,0.32562683,614.2,612.84,1.414]
[1742064315901,0.28375155,614.19,612.84,1.414]
[1742064316099,0.32564273,614.17,612.84,1.414]
[1742064316299,2.47811396,613.99,612.84,1.414]
[1742064316598,0.3257435,613.98,612.84,1.414]
[1742064320099,0.3257435,613.98,612.85,0.9750237]
[1742064320294,0.3257435,613.98,612.86,0.97503455]
[1742064320499,0.3257435,613.98,612.87,0.97503455]
[1742064320799,0.3257435,613.98,612.87,1.1011573]
[1742064321000,0.3257435,613.98,612.88,0.97556282]
[1742064321296,0.3257435,613.98,612.87,1.1011573]
[1742064321501,0.3257435,613.98,612.88,0.9755816]
[1742064321702,0.3257435,613.98,612.89,0.9755816]
[1742064322403,0.3257435,613.98,612.9,2.0767389]
[1742064322603,0.3257435,613.98,612.9,1.1011573]
[1742064323105,0.3257435,613.98,612.91,1.1011573]
[1742064324002,0.3257435,613.98,612.92,1.1011573]
[1742064324905,0.3257435,613.98,612.93,1.1011573]
[1742064325404,0.3257435,613.98,612.94,0.97590141]
[1742064325608,0.3257435,613.98,612.95,2.07702353]
[1742064325809,0.3257435,613.98,612.95,2.5341573]
[1742064326310,0.3257435,613.98,612.96,1.1011573]
[1742064326610,0.3257435,613.98,612.97,1.1011573]
[1742064327209,0.3257435,613.98,612.98,1.1011573]
[1742064328004,0.3257435,613.98,612.99,1.1011573]
[1742064328603,0.3257435,613.98,612.95,1.433]
[1742064329413,0.3257435,613.98,612.96,1.10308757]
[1742064330314,0.3257435,613.98,612.97,1.10308757]
[1742064330807,0.3257435,613.98,612.95,1.433]
[1742064330808,0.3257435,613.98,612.98,1.10308757]
[1742064331613,0.3257435,613.98,612.95,1.433]
[1742064332709,0.3257435,613.98,612.96,1.15]
[1742064336621,0.3257435,613.98,612.97,1.369]
[1742064341416,2.47811396,613.91,612.97,1.369]
[1742064343317,2.80385746,613.98,612.97,1.369]
[1742064344922,2.47811396,613.95,612.97,1.369]
[1742064345114,0.32576473,613.94,612.97,1.369]
[1742064346223,0.32576473,613.94,612.98,1.205]
[1742064349525,0.32576473,613.94,612.99,1.411]
[1742064356730,0.32576473,613.94,613.0,1.453]
[1742064360633,2.47811396,614.61,613.0,1.453]
[1742064360829,0.32542019,614.59,613.0,1.77926427]
[1742064361432,0.32542019,614.59,613.01,1.09992596]
[1742064362335,0.32542019,614.59,613.02,1.09992596]
[1742064362637,0.32542019,614.59,613.03,0.3262483]
[1742064362935,0.32542019,614.59,613.03,1.42617426]
[1742064363734,0.32542019,614.59,613.04,1.09992596]
[1742064363928,0.28360702,614.58,613.04,1.09992596]
[1742064364129,0.28360702,614.58,613.05,1.09992596]
[1742064364332,0.32543078,614.57,613.05,1.42616362]
[1742064365139,0.32543078,614.57,613.06,1.09992596]
[1742064365635,0.32543078,614.57,613.07,1.09992596]
[1742064366337,0.32543078,614.57,613.08,2.79492596]
[1742064366932,0.32543078,614.57,613.09,1.09992596]
[1742064367335,0.32543078,614.57,613.09,1.42614233]
[1742064367838,0.32543078,614.57,613.1,1.09992596]
[1742064368138,0.32543078,614.57,613.1,2.22692596]
[1742064368539,0.32543078,614.57,613.1,1.127]
[1742064369038,0.32543078,614.57,613.11,0.32620573]
[1742064369234,0.32543078,614.57,613.11,1.42249402]
[1742064369633,0.32543078,614.57,613.12,1.09628829]
[1742064369834,0.32543078,614.57,613.13,0.32619509]
[1742064370437,0.32543078,614.57,613.14,2.06567527]
[1742064370633,0.32543078,614.57,613.15,1.29557143]
[1742064370838,0.32543078,614.57,613.16,1.29556611]
[1742064371032,0.32543078,614.57,613.17,1.29556079]
[1742064371235,0.32543078,614.57,613.18,1.29555547]
[1742064371436,0.32543078,614.57,613.19,0.32616317]
[1742064371641,0.32543078,614.57,613.2,0.9691208]
[1742064371840,0.32543078,614.57,613.21,1.29527334]
[1742064372135,0.32543078,614.57,613.22,0.32614722]
[1742064372742,0.32543078,614.57,613.23,1.09628829]
[1742064373143,0.32543078,614.57,613.24,0.32613658]
[1742064375940,0.32543078,614.57,613.25,2.51316445]
[1742064376143,0.32543078,614.57,613.26,0.32612594]
[1742064380551,0.32543078,614.57,613.27,1.09096439]
[1742064380754,0.32543078,614.57,613.28,1.09096439]
[1742064381251,2.80354474,614.57,613.28,1.09096439]
[1742064381943,2.80354474,614.57,613.29,1.09096439]
[1742064382347,2.80354474,614.57,613.3,1.09096439]
[1742064383347,2.80354474,614.57,613.26,0.32612594]
[1742064383548,0.32543078,614.57,613.26,0.32612594]
[1742064383748,0.32543078,614.57,613.27,1.291]
[1742064385054,0.609017,614.57,613.27,1.291]
[1742064385354,0.32543078,614.57,613.27,1.291]
[1742064385554,0.609017,614.57,613.27,1.291]
[1742064386252,0.32543078,614.57,613.27,1.291]
[1742064387953,0.28355503,614.56,613.27,1.291]
[1742064388155,0.32544667,614.54,613.27,1.291]
[1742064389858,0.28355734,614.53,613.27,1.291]
[1742064390352,0.32546256,614.51,613.27,2.718]
[1742064391451,0.32546256,614.51,613.27,4.279]
[1742064392659,0.2836128,614.5,613.27,4.279]
[1742064393459,0.32547845,614.48,613.27,4.279]
[1742064394558,0.28363014,614.47,613.27,4.279]
[1742064394962,2.47811396,614.38,613.27,4.279]
[1742064395459,0.32553672,614.37,613.27,4.279]
[1742064395656,0.32553672,614.37,613.27,5.992]
[1742064434898,0.32553672,614.37,613.27,7.121]
[1742064435095,2.47811396,614.06,613.27,7.121]
[1742064436791,2.47811396,613.97,613.27,7.121]
[1742064438194,2.47811396,613.99,613.27,7.121]
[1742064441094,0.32553672,614.37,613.27,7.121]
[1742064444695,2.47811396,614.23,613.27,7.121]
[1742064446698,0.32553672,614.37,613.27,7.121]
[1742064453404,2.47811396,614.22,613.27,7.121]
[1742064453603,0.32562683,614.2,613.27,7.121]
[1742064455603,0.28373189,614.19,613.27,7.121]
[1742064455903,2.47811396,614.14,613.27,7.121]
[1742064456104,0.32566394,614.13,613.27,7.121]
[1742064457403,2.47811396,614.04,613.27,7.121]
[1742064457604,0.32571698,614.03,613.27,7.121]
[1742064469505,0.6094882,614.03,613.27,7.121]
[1742064471812,2.47811396,614.01,613.27,7.121]
[1742064472005,0.32573289,614.0,613.27,7.121]
[1742064472608,0.28381635,613.99,613.27,7.121]
[1742064472811,0.3257435,613.98,613.27,7.121]
[1742064473712,2.47811396,613.63,613.27,7.121]
[1742064474114,2.47811396,613.63,612.31,0.28381172]
[1742064474413,2.47811396,613.63,612.32,2.52183329]
[1742064474711,2.47811396,613.63,612.33,2.52183329]
[1742064474910,2.47811396,613.63,612.34,2.52183329]
[1742064475106,2.47811396,613.63,612.35,1.29654647]
[1742064475312,2.47811396,613.63,612.36,1.29654114]
[1742064475508,2.47811396,613.63,612.37,1.29653581]
[1742064475712,2.47811396,613.63,612.38,0.96993588]
[1742064476014,2.47811396,613.63,612.39,4.14460693]
[1742064476214,2.47811396,613.63,612.4,0.96993588]
[1742064476414,2.47811396,613.63,612.39,3.17467105]
[1742064476415,2.47811396,613.56,612.41,1.29651447]
[1742064476609,2.47811396,613.56,612.42,1.29650914]
[1742064476814,2.47811396,613.56,612.43,0.96993588]
[1742064477114,2.47811396,613.56,612.44,0.96993588]
[1742064477307,2.47811396,613.56,612.45,1.29649314]
[1742064477508,2.47811396,613.56,612.46,0.32655193]
[1742064478421,0.3257435,613.98,612.46,0.32655193]
[1742064479120,0.2839055,613.97,612.46,0.32655193]
[1742064479317,0.32575942,613.95,612.46,0.32655193]
[1742064480026,2.47811396,613.66,612.46,0.32655193]
[1742064481026,0.32591868,613.65,612.46,0.32655193]
[1742064492743,2.47811396,613.59,612.46,0.32655193]
[1742064494142,0.32591868,613.65,612.46,0.32655193]
[1742064494143,2.47811396,613.58,612.46,0.32655193]
[1742064496240,0.32591868,613.65,612.46,0.32655193]
[1742064496441,0.32591868,613.65,612.47,1.074]
[1742064498247,0.32591868,613.65,612.48,2.887]
[1742064502050,0.28402135,613.64,612.48,2.887]
[1742064502849,0.32593461,613.62,612.48,2.887]
[1742064504349,0.32593461,613.62,612.49,1.036]
[1742064505044,2.47811396,613.53,612.49,1.036]
[1742064505249,0.32599305,613.51,612.49,1.036]
[1742064508654,0.2841141,613.5,612.49,1.036]
[1742064508847,0.32600899,613.48,612.49,1.036]
[1742064510847,2.47811396,613.15,612.49,1.036]
[1742064511052,0.32618977,613.14,612.49,1.036]
[1742064521365,0.32618977,613.14,612.5,1.678]
[1742064522767,0.32618977,613.14,612.51,1.651]
[1742064527467,0.32618977,613.14,612.52,1.77]
[1742064529475,0.2841721,613.13,612.52,1.77]
[1742064529673,0.32620041,613.12,612.52,1.77]
[1742064532081,0.32620041,613.12,612.52,3.356]
[1742064532673,0.61038412,613.12,612.52,3.356]
[1742064535281,0.32620041,613.12,612.52,3.356]
[1742064535480,0.28428469,613.11,612.52,3.356]
[1742064535782,0.32621105,613.1,612.52,3.356]
[1742064538183,2.47811396,612.69,612.52,3.356]
[1742064538378,0.32643468,612.68,612.52,3.356]
[1742064541689,0.32643468,612.68,612.52,1.586]
[1742064543389,0.32643468,612.68,612.14,1.625]
[1742064545595,2.47811396,612.63,612.14,1.625]
[1742064547193,2.47811396,612.61,612.14,1.625]
[1742064548800,2.47811396,612.56,612.14,1.625]
[1742064551495,2.47811396,612.62,612.14,1.625]
[1742064553401,0.32643468,612.68,612.14,1.625]
[1742064554000,1.0,612.49,612.14,1.625]
[1742064570411,1.0,612.49,612.09,4.063]
[1742064572115,1.0,612.49,612.09,2.826]
[1742064572815,1.0,612.49,612.09,1.374]
[1742064580121,1.0,612.49,612.1,0.96999308]
[1742064580421,1.0,612.49,612.11,0.96933893]
[1742064580622,2.47811396,614.09,612.5,1.0]
[1742064580916,0.32569576,614.07,612.5,1.0]
[1742064583123,0.28395878,614.06,612.5,1.0]
[1742064583322,0.32571168,614.04,612.5,1.0]
[1742064584624,0.32571168,614.04,612.12,0.32673332]
[1742064584824,0.32571168,614.04,612.13,0.9674613]
[1742064585018,0.32571168,614.04,612.14,0.9674613]
[1742064585216,2.47811396,613.93,612.15,0.9674613]
[1742064585420,0.32578065,613.91,612.16,0.9674613]
[1742064585621,0.32578065,613.91,612.15,2.84095872]
[1742064585824,0.32578065,613.91,612.16,0.96705224]
[1742064586028,0.28401787,613.9,612.15,2.84095872]
[1742064586226,0.28401787,613.9,612.12,0.32673332]
[1742064586227,0.32579657,613.88,612.17,2.84095872]
[1742064586726,0.32579657,613.88,612.18,1.09267643]
[1742064587626,0.32579657,613.88,612.19,1.09267643]
[1742064588329,2.47811396,613.87,612.2,1.09267643]
[1742064588529,0.32581249,613.85,612.2,1.09267643]
[1742064588723,0.32581249,613.85,612.21,1.09267643]
[1742064589127,0.28404453,613.84,612.21,1.09267643]
[1742064589324,0.32582841,613.82,612.12,0.32673332]
[1742064590029,0.32582841,613.82,612.13,1.0909169]
[1742064590230,0.32582841,613.82,612.13,2.6679169]
[1742064590432,0.32582841,613.82,612.13,1.577]
[1742064592125,0.28405149,613.81,612.13,1.577]
[1742064592435,0.32584434,613.79,612.13,1.577]
[1742064594938,0.32584434,613.79,612.14,1.556]
[1742064595640,0.28405844,613.78,612.14,1.556]
[1742064595940,0.32586027,613.76,612.14,1.556]
[1742064597438,0.32586027,613.76,612.15,1.385]
[1742064597634,2.47811396,613.67,612.15,1.385]
[1742064597834,0.32591868,613.65,612.15,1.385]
[1742064598539,0.28408511,613.64,612.15,1.385]
[1742064598740,0.32593461,613.62,612.15,1.385]
[1742064599639,2.47811396,613.5,612.15,1.385]
[1742064599834,0.32600899,613.48,612.15,1.385]
[1742064601643,0.28410482,613.47,612.15,1.385]
[1742064601946,0.32601962,613.46,612.15,1.385]
[1742064602346,2.47811396,613.36,612.15,1.385]
[1742064602540,0.32607809,613.35,612.15,1.385]
[1742064604949,0.32607809,613.35,612.15,3.103]
[1742064605350,0.32607809,613.35,612.15,4.906]
[1742064607551,2.47811396,613.34,612.15,4.906]
[1742064609051,2.47811396,613.32,612.15,4.906]
[1742064610251,2.47811396,613.32,612.15,6.638]
[1742064611249,2.47811396,613.32,612.15,8.005]
[1742064613956,0.32607809,613.35,612.15,8.005]
[1742064616159,0.32607809,613.35,612.16,1.09302364]
[1742064616957,0.32607809,613.35,612.17,0.96791827]
[1742064617152,0.32607809,613.35,612.18,0.96791827]
[1742064617455,0.32607809,613.35,612.19,0.96815822]
[1742064617658,0.32607809,613.35,612.2,0.96815822]
[1742064617858,0.32607809,613.35,612.2,2.84266515]
[1742064618258,0.32607809,613.35,612.21,1.09302364]
[1742064618958,0.32607809,613.35,612.17,1.09302364]
[1742064619158,0.32607809,613.35,612.18,0.96857164]
[1742064619355,0.32607809,613.35,612.17,1.09302364]
[1742064619356,0.32607809,613.35,612.19,0.96910139]
[1742064619555,0.32607809,613.35,612.2,0.96910139]
[1742064619757,0.32607809,613.35,612.21,1.09302364]
[1742064620456,0.32607809,613.35,612.17,2.84440687]
[1742064621054,0.32607809,613.35,612.17,2.73202364]
[1742064622458,0.32607809,613.35,612.18,1.09302364]
[1742064625359,0.32607809,613.35,612.19,0.97296612]
[1742064625664,0.32607809,613.35,612.2,0.97296612]
[1742064625864,0.32607809,613.35,612.21,0.97296612]
[1742064626064,2.47811396,613.55,612.22,2.52957216]
[1742064626264,2.47811396,613.55,612.23,2.52957216]
[1742064626459,2.47811396,613.55,612.22,0.32667995]
[1742064626460,2.47811396,613.55,612.24,2.52957216]
[1742064626659,2.47811396,613.55,612.25,2.8562361]
[1742064626863,2.47811396,613.76,612.26,2.85623076]
[1742064627072,0.32586558,613.75,612.27,2.85622543]
[1742064627266,0.32586558,613.75,612.28,0.9729653]
[1742064627461,0.32586558,613.75,612.28,2.5297141]
[1742064627663,0.32586558,613.75,612.29,4.15087258]
[1742064627858,0.32586558,613.75,612.3,1.29960256]
[1742064628063,0.32586558,613.75,612.31,1.29959723]
[1742064628260,0.32586558,613.75,612.32,2.85639391]
[1742064628460,0.32586558,613.75,612.33,2.85638857]
[1742064628665,0.32586558,613.75,612.34,2.85638324]
[1742064628968,0.32586558,613.75,612.35,2.8563779]
[1742064629169,0.32586558,613.75,612.36,2.85637257]
[1742064629467,0.32586558,613.75,612.37,2.52976731]
[1742064629768,0.32586558,613.75,612.38,2.52976731]
[1742064629964,0.32586558,613.75,612.39,2.52976731]
[1742064630163,0.32586558,613.75,612.4,2.52976731]
[1742064630365,0.32586558,613.75,612.41,0.9729653]
[1742064630572,0.32586558,613.75,612.42,0.9729653]
[1742064630767,0.32586558,613.75,612.43,0.9729653]
[1742064631068,0.32586558,613.75,612.44,0.9729653]
[1742064631368,0.32586558,613.75,612.45,0.97234713]
[1742064631569,0.32586558,613.75,612.45,2.85012956]
[1742064631869,0.32586558,613.75,612.46,0.97239045]
[1742064632167,0.32586558,613.75,612.45,2.85012956]
[1742064632367,0.32586558,613.75,612.36,0.32660526]
[1742064632368,0.32586558,613.75,612.47,1.09302364]
[1742064632766,0.32586558,613.75,612.37,2.84981188]
[1742064632967,0.32586558,613.75,612.38,0.97215781]
[1742064633267,0.32586558,613.75,612.39,0.97215781]
[1742064633465,0.32586558,613.75,612.4,3.82196969]
[1742064633663,0.32586558,613.75,612.41,0.97215781]
[1742064633867,0.32586558,613.75,612.42,3.82196969]
[1742064634067,0.32586558,613.75,612.43,0.97215781]
[1742064634263,0.32586558,613.75,612.44,0.97215781]
[1742064634464,0.32586558,613.75,612.45,0.97215781]
[1742064634667,0.32586558,613.75,612.46,0.97215781]
[1742064634869,0.32586558,613.75,612.47,0.97215781]
[1742064635064,0.32586558,613.75,612.48,0.97215781]
[1742064635268,0.32586558,613.75,612.36,0.32660526]
[1742064636167,0.32586558,613.75,612.37,1.09747607]
[1742064636371,0.32586558,613.75,612.38,0.32659459]
[1742064636573,0.32586558,613.75,612.38,1.42407066]
[1742064637375,0.32586558,613.75,612.39,1.09747607]
[1742064637577,0.32586558,613.75,612.4,0.32658393]
[1742064637769,0.32586558,613.75,612.4,2.32158393]
[1742064638371,0.32586558,613.75,612.41,1.09747607]
[1742064638576,0.32586558,613.75,612.42,0.32657326]
[1742064639078,0.32586558,613.75,612.43,1.09747607]
[1742064639282,0.32586558,613.75,612.44,0.3265626]
[1742064639478,0.32586558,613.75,612.44,1.42403867]
[1742064640277,0.32586558,613.75,612.45,1.09747607]
[1742064640473,0.32586558,613.75,612.46,0.32655193]
[1742064641380,0.32586558,613.75,612.47,1.09747607]
[1742064641574,0.32586558,613.75,612.48,0.32654127]
[1742064642582,0.32586558,613.75,612.49,1.09640209]
[1742064642783,0.32586558,613.75,612.5,0.32653061]
[1742064642976,0.32586558,613.75,612.5,1.4229327]
[1742064643380,0.32586558,613.75,612.51,0.97016385]
[1742064643580,0.32586558,613.75,612.52,0.97016385]
[1742064643775,0.32586558,613.75,612.53,0.97016385]
[1742064643982,0.32586558,613.75,612.54,0.97016385]
[1742064644182,2.47811396,614.45,612.55,0.97016385]
[1742064644383,2.47811396,614.32,612.52,4.51153392]
[1742064644583,2.47811396,614.32,612.53,0.96990461]
[1742064644883,2.47811396,614.32,612.56,1.09640209]
[1742064645479,2.47811396,614.32,612.57,1.09640209]
[1742064645877,2.47811396,614.32,612.58,1.09640209]
[1742064646080,0.28382908,614.31,612.58,1.09640209]
[1742064646282,0.28382908,614.31,612.59,1.09640209]
[1742064646777,0.28382908,614.31,612.52,1.662]
[1742064647484,0.28382908,614.31,612.53,1.09501877]
[1742064647784,0.28382908,614.31,612.52,1.662]
[1742064649085,0.28382908,614.31,612.53,1.09479397]
[1742064649289,2.47811396,614.47,612.53,1.09479397]
[1742064649481,2.47811396,614.47,612.52,1.662]
[1742064649680,0.28393677,614.3,612.52,1.662]
[1742064649884,2.47811396,614.4,612.52,1.662]
[1742064651280,2.47811396,614.4,612.52,2.875]
[1742064651482,2.47811396,613.89,612.52,2.875]
[1742064652088,0.2840399,613.88,612.52,2.875]
[1742064652689,0.2840399,613.88,612.52,4.603]
[1742064653688,2.47811396,613.8,612.52,4.603]
[1742064655682,2.47811396,613.77,612.52,4.603]
[1742064657685,2.47811396,613.58,612.52,4.603]
[1742064658290,2.47811396,613.58,612.52,6.116]
[1742064658695,0.28407352,613.57,612.52,6.116]
[1742064661296,2.47811396,613.65,612.52,6.116]
[1742064661695,0.2840654,613.56,612.52,6.116]
[1742064661897,2.47811396,613.65,612.52,6.116]
[1742064663193,2.47811396,614.44,612.52,6.116]